lending/lending_fUSD_20251018
["ID","MTS","AMOUNT","RATE_DAILY","PERIOD"]
[391751021,1760773843713,-443.441981,0.00032555,30]
[391751022,1760773843722,-443.441981,0.00032555,30]
[391751023,1760773843732,-443.441981,0.00032555,30]
[391751024,1760773843741,-167.966059,0.00032555,30]
[391751025,1760773843751,-151.0,0.00032555,30]
[391751026,1760773843761,-151.0,0.00032555,30]
[391751027,1760773843771,-151.0,0.00032555,30]
[391751028,1760773843780,-157.781135,0.00032555,30]
[391751029,1760773843790,-166.574712,0.00032555,30]
[391751030,1760773843799,-166.574712,0.00032555,30]
[391751031,1760773843809,-166.574712,0.00032555,30]
[391751032,1760773843818,-166.574712,0.00032555,30]
[391751033,1760773843828,-166.574712,0.00032555,30]
[391751034,1760773843838,-166.574712,0.00032555,30]
[391751035,1760773843848,-151.0,0.00032555,30]
[391751036,1760773843857,-151.0,0.00032555,30]
[391751037,1760773843867,-151.0,0.00032555,30]
[391751038,1760773843878,-166.574712,0.00032555,30]
[391751039,1760773843887,-166.574712,0.00032555,30]
[391751040,1760773843898,-166.574712,0.00032555,30]
[391751041,1760773843908,-166.574712,0.00032555,30]
[391751042,1760773843917,-166.574712,0.00032555,30]
[391751043,1760773843926,-151.0,0.00032555,30]
[391751044,1760773843936,-166.574712,0.00032555,30]
[391751045,1760773843945,-151.52054,0.00032555,30]
[391751046,1760773843955,-151.0,0.00032555,30]
[391751047,1760773843965,-151.0,0.00032555,30]
[391751048,1760773843975,-213.707719,0.00032555,30]
[391751049,1760773843985,-151.0,0.00032555,30]
[391751050,1760773843995,-151.0,0.00032555,30]
[391751051,1760773844005,-151.0,0.00032555,30]
[391751052,1760773844021,-194.097366,0.00032555,30]
[391751053,1760773844030,-151.0,0.00032555,30]
[391751054,1760773844040,-151.0,0.00032555,30]
[391751055,1760773844048,-151.0,0.00032555,30]
[391751056,1760773844058,-151.0,0.00032555,30]
[391751057,1760773844067,-151.0,0.00032555,30]
[391751058,1760773844077,-151.0,0.00032555,30]
[391751059,1760773844086,-151.0,0.00032555,30]
[391751060,1760773844095,-151.0,0.00032555,30]
[391751061,1760773844105,-151.0,0.00032555,30]
[391751062,1760773844115,-151.0,0.00032555,30]
[391751063,1760773844124,-151.0,0.00032555,30]
[391751064,1760773844134,-151.0,0.00032555,30]
[391751065,1760773844143,-151.1804736,0.00032555,30]
[391751066,1760773844153,-151.0,0.00032555,30]
[391751067,1760773844162,-151.0,0.00032555,30]
[391751068,1760773844172,-151.0,0.00032555,30]
[391751069,1760773844182,-151.0,0.00032555,30]
[391751070,1760773844192,-151.0,0.00032555,30]
[391751071,1760773844201,-151.0,0.00032555,30]
[391751072,1760773844211,-151.0,0.00032555,30]
[391751073,1760773844220,-151.0,0.00032555,30]
[391751074,1760773844230,-195.748025,0.00032555,30]
[391751075,1760773844239,-151.0,0.00032555,30]
[391751076,1760773844249,-151.0,0.00032555,30]
[391751077,1760773844262,-151.0,0.00032555,30]
[391751078,1760773844274,-151.0,0.00032555,30]
[391751079,1760773844284,-206.07915691,0.00032555,30]
[391751080,1760773844294,-151.471984,0.00032555,30]
[391751081,1760773844303,-151.0,0.00032555,30]
[391751082,1760773844314,-151.0,0.00032555,30]
[391751083,1760773844324,-151.0,0.00032555,30]
[391751084,1760773844334,-151.0,0.00032555,30]
[391751085,1760773844344,-151.0,0.00032555,30]
[391751086,1760773844354,-151.0,0.00032555,30]
[391751087,1760773844363,-151.0,0.00032555,30]
[391751088,1760773844373,-152.208978,0.00032555,10]
[391751089,1760773844382,-151.0,0.00032555,30]
[391751090,1760773844392,-151.0,0.00032555,30]
[391751091,1760773844401,-151.0,0.00032555,30]
[391751092,1760773844411,-500.0,0.00032555,2]
[391751093,1760773844420,-151.0,0.00032555,30]
[391751094,1760773844431,-173.872023,0.00032555,30]
[391751095,1760773844441,-150.0,0.00032555,2]
[391751096,1760773844451,-151.0,0.00032555,30]
[391751097,1760773844460,-500.0,0.00032555,2]
[391751098,1760773844470,-150.0,0.00032555,2]
[391751099,1760773844480,-500.0,0.00032555,2]
[391751100,1760773844489,-150.0,0.00032555,2]
[391751101,1760773844498,-150.0,0.00032555,2]
[391751102,1760773844508,-150.0,0.00032555,2]
[391751103,1760773844517,-151.0,0.00032555,30]
[391751104,1760773844527,-151.0,0.00032555,30]
[391751105,1760773844536,-150.0,0.00032555,2]
[391751106,1760773844546,-265.497373,0.00032555,30]
[391751107,1760773844555,-151.0,0.00032555,30]
[391751108,1760773844565,-151.0,0.00032555,30]
[391751109,1760773844575,-241.818944,0.00032555,30]
[391751110,1760773844584,-151.0,0.00032555,30]
[391751111,1760773844594,-241.818944,0.00032555,30]
[391751112,1760773844603,-151.0,0.00032555,30]
[391751113,1760773844613,-241.818944,0.00032555,30]
[391751114,1760773844623,-151.0,0.00032555,30]
[391751115,1760773844633,-241.818944,0.00032555,30]
[391751116,1760773844644,-151.0,0.00032555,30]
[391751117,1760773844654,-151.0,0.00032555,30]
[391751118,1760773844664,-151.0,0.00032555,30]
[391751119,1760773844674,-290.660409,0.00032555,30]
[391751120,1760773844683,-151.0,0.00032555,30]
[391751121,1760773844693,-151.0,0.00032555,30]
[391751122,1760773844702,-151.0,0.00032555,30]
[391751123,1760773844712,-152.34069,0.00032555,30]
[391751124,1760773844722,-234.991093,0.00032555,30]
[391751125,1760773844731,-37518.5813105,0.00032555,2]
[391751126,1760773844742,-10000.0,0.00032556,30]
[391751127,1760773844752,-12536.03662219,0.0003256,20]
[391751128,1760773844762,-19660.7120089,0.00032562,2]
[391751129,1760773844772,-20649.57392052,0.00032562,2]
[391751130,1760773844790,-66909.2038617,0.00032562,2]
[391751131,1760773844802,-6744.02261659,0.00032562,2]
[391751132,1760773844814,-1177.95232909,0.00032562,2]
[391751133,1760773844825,-4289.61028403,0.00032562,2]
[391751134,1760773844836,-2599.62282328,0.00032562,2]
[391751135,1760773844869,-1251.56,0.00032562,2]
[391751136,1760773844880,-1183.9789706,0.00032562,2]
[391751137,1760773844892,-1182.47375131,0.00032562,2]
[391751138,1760773844902,-2503.12,0.00032562,2]
[391751142,1760773846480,-303.8,0.00032562,2]
[391751249,1760775028389,3042.1350952,0.00032582,30]
[391751259,1760775032296,-150.0,0.00024499,2]
[391751260,1760775032308,-300.0,0.00024499,2]
[391751261,1760775032318,-1200.0,0.00024499,2]
[391751262,1760775032328,-34.50551895,0.000245,120]
[391751263,1760775032405,-1546.71395968,0.000245,120]
[391751264,1760775032414,-124.23014928,0.000245,2]
[391751265,1760775032511,-382.35999,0.000245,2]
[391751266,1760775032595,-11302.27440187,0.000245,2]
[391751267,1760775032605,-323.0,0.00026675,2]
[391751268,1760775032614,-2500.0,0.00026949,120]
[391751269,1760775032624,-300.0,0.00026949,120]
[391751270,1760775032633,-505.0,0.00028795,2]
[391751271,1760775032643,-160.0,0.0003,30]
[391751272,1760775032653,-160.0,0.0003,30]
[391751273,1760775032668,-160.0,0.0003,30]
[391751274,1760775032678,-2751.0,0.00030966,120]
[391751275,1760775032688,-1583.25,0.00031008,2]
[391751276,1760775032702,-182.98,0.00031046,30]
[391751277,1760775032712,-3449.87,0.0003106,2]
[391751278,1760775032721,-160.0,0.00031065,2]
[391751279,1760775032731,-338.0,0.00031074,2]
[391751280,1760775032741,-7134.42386989,0.00031075,2]
[391751281,1760775032752,-13655.80613011,0.00031075,2]
[391751282,1760775032762,-4844.29,0.00031075,2]
[391751283,1760775032774,-160.19,0.00031152,2]
[391751284,1760775032783,-250.0,0.00031281,2]
[391751285,1760775032793,-297.08,0.00031387,2]
[391751286,1760775032802,-200.0,0.00031426,2]
[391751287,1760775032811,-810.0,0.00031438,2]
[391751288,1760775032820,-1600.0,0.00031473,120]
[391751289,1760775032829,-200.0,0.0003149,2]
[391751291,1760775032839,-1000.0,0.00031492,2]
[391751292,1760775032848,-1000.0,0.00031553,2]
[391751294,1760775032857,-600.0,0.00031554,2]
[391751295,1760775032867,-200.0,0.00031554,2]
[391751296,1760775032876,-104.66907166,0.00031554,2]
[391751303,1760775038319,-95.33092834,0.00031554,2]
[391751304,1760775038331,-159.69,0.00031566,2]
[391751305,1760775038341,-695.043,0.00031572,29]
[391751306,1760775038351,-160.48747268,0.00031572,29]
[391751307,1760775038361,-21237.26,0.00031573,2]
[391751308,1760775038371,-955.18,0.00031641,2]
[391751309,1760775038381,-1207.48,0.00031641,2]
[391751310,1760775038391,-168.22,0.00031778,2]
[391751311,1760775038400,-200.0,0.000318,11]
[391751312,1760775038410,-875.13443439,0.00031838,2]
[391751313,1760775038420,-500.0,0.000319,11]
[391751314,1760775038430,-2350.10049569,0.00031903,2]
[391751315,1760775038440,-2001.16536981,0.00032,2]
[391751316,1760775038450,-1000.0,0.00032,2]
[391751317,1760775038460,-875.13443439,0.00032101,2]
[391751319,1760775038469,-600.0,0.00032102,2]
[391751320,1760775038479,-204.0900688,0.00032102,2]
[391751322,1760775038488,-200.0,0.00032102,2]
[391751324,1760775038498,-4438.04727209,0.00032138,17]
[391751326,1760775038507,-151.0,0.00032287,7]
[391751328,1760775038517,-151.06864197,0.0003229,15]
[391751330,1760775038527,-1937.55442862,0.0003229,2]
[391751332,1760775038537,-423.36817544,0.0003229,2]
[391751334,1760775038547,-8119.64973682,0.0003229,2]
[391751336,1760775038557,-3366.24850772,0.0003229,4]
[391751338,1760775038566,-788.54218497,0.000323,2]
[391751340,1760775038576,-800.0,0.000323,11]
[391751342,1760775038585,-500.0,0.00032306,2]
[391751344,1760775038594,-500.0,0.00032306,2]
[391751346,1760775038603,-500.0,0.00032306,2]
[391751348,1760775038613,-500.0,0.00032306,2]
[391751350,1760775038623,-164.6194322,0.00032306,2]
[391751352,1760775038632,-1645.06318911,0.00032309,2]
[391751354,1760775038642,-1937.55442861,0.00032309,2]
[391751356,1760775038651,-8119.64973673,0.00032309,2]
[391751358,1760775038661,-151.06864197,0.00032312,15]
[391751360,1760775038671,-423.36817544,0.00032315,2]
[391751362,1760775038681,-788.54218491,0.00032328,2]
[391751364,1760775038691,-1937.55442861,0.00032329,2]
[391751366,1760775038701,-71.76273069,0.00032329,2]
[391751369,1760775038735,-402.96942914,0.00032329,2]
[391751370,1760775038747,-5552.5,0.00032329,2]
[391751371,1760775038759,-331.241408,0.00032329,2]
[391751372,1760775038771,-1761.1761689,0.00032329,2]
[391751373,1760775038783,-151.06864197,0.00032334,15]
[391751374,1760775038793,-423.36817544,0.0003234,2]
[391751375,1760775038803,-1937.55442861,0.00032348,2]
[391751376,1760775038812,-8119.64973673,0.00032348,2]
[391751377,1760775038822,-788.54218491,0.00032355,2]
[391751378,1760775038833,-118.06005336,0.00032356,15]
[391751379,1760775038849,-33.00858861,0.00032356,15]
[391751380,1760775038859,-272.36141139,0.00032365,2]
[391751381,1760775038871,-151.00676405,0.00032365,2]
[391751382,1760775038882,-1937.55442861,0.00032368,2]
[391751383,1760775038893,-8119.64973673,0.00032368,2]
[391751384,1760775038903,-500.0,0.00032373,5]
[391751385,1760775038913,-500.0,0.00032373,2]
[391751386,1760775038923,-500.0,0.00032373,5]
[391751387,1760775038932,-501.57961135,0.00032373,5]
[391751388,1760775038942,-159.983392,0.00032373,5]
[391751389,1760775038952,-500.0,0.00032373,5]
[391751390,1760775038962,-501.3157321,0.00032373,5]
[391751391,1760775038972,-503.65457467,0.00032373,5]
[391751392,1760775038986,-500.0,0.00032373,5]
[391751393,1760775038996,-500.0,0.00032373,5]
[391751394,1760775039006,-509.13675359,0.00032373,5]
[391751395,1760775039017,-500.0,0.00032373,5]
[391751396,1760775039027,-151.06864197,0.00032378,15]
[391751397,1760775039038,-788.54218491,0.00032383,2]
[391751398,1760775039048,-1937.55442861,0.00032387,2]
[391751399,1760775039059,-7290.64707767,0.00032387,2]
[391751401,1760775040399,-829.00265906,0.00032387,2]
[391751402,1760775040409,-500.0,0.00032389,17]
[391751403,1760775040419,-354.4540703,0.00032389,17]
[391751404,1760775040429,-23515.50488926,0.0003239,2]
[391751405,1760775040441,-2811.45,0.0003239,2]
[391751406,1760775040453,-1951.94999998,0.0003239,2]
[391751407,1760775040509,-226130.16389476,0.0003239,2]
[391751408,1760775040520,-131409.05948119,0.0003239,2]
[391751409,1760775040532,-10738.434,0.0003239,2]
[391751410,1760775040543,-1074.3,0.0003239,2]
[391751411,1760775040742,-7315.2,0.0003239,2]
[391751412,1760775040755,-11914.712,0.0003239,2]
[391751413,1760775040767,-3770.90089442,0.0003239,2]
[391751414,1760775040816,-2054.86838987,0.0003239,2]
[391751434,1760775043575,-377.05559463,0.00032389,2]
[391751435,1760775043585,-500.0,0.00032389,2]
[391751436,1760775043594,-154.59299868,0.00032389,2]
[391751437,1760775043606,-14.51329036,0.00032389,2]
[391751438,1760775043615,-500.0,0.00032389,2]
[391751439,1760775043625,-378.12285331,0.00032389,2]
[391751440,1760775043635,-2326.78846452,0.0003239,2]
[391751441,1760775043644,-423.36817544,0.0003239,2]
[391751442,1760775043654,-151.0,0.0003239,30]
[391751443,1760775043663,-1053.931518,0.0003239,30]
[391751444,1760775043673,-1053.931518,0.0003239,30]
[391751445,1760775043682,-1053.931518,0.0003239,30]
[391751446,1760775043692,-393.474662,0.0003239,30]
[391751447,1760775043702,-1053.931518,0.0003239,30]
[391751448,1760775043714,-393.474662,0.0003239,30]
[391751449,1760775043724,-151.0,0.0003239,30]
[391751450,1760775043734,-393.474662,0.0003239,30]
[391751451,1760775043743,-393.474662,0.0003239,30]
[391751452,1760775043753,-262.855207,0.0003239,30]
[391751453,1760775043763,-970.752052,0.0003239,30]
[391751454,1760775043772,-152.814514,0.0003239,30]
[391751455,1760775043782,-151.749669,0.0003239,30]
[391751456,1760775043792,-970.752052,0.0003239,30]
[391751457,1760775043801,-151.0,0.0003239,30]
[391751458,1760775043811,-404.931616,0.0003239,30]
[391751459,1760775043821,-970.752052,0.0003239,30]
[391751460,1760775043831,-404.931616,0.0003239,30]
[391751461,1760775043840,-970.752052,0.0003239,30]
[391751462,1760775043850,-151.0,0.0003239,30]
[391751463,1760775043860,-404.931616,0.0003239,30]
[391751464,1760775043870,-404.931616,0.0003239,30]
[391751465,1760775043880,-151.0,0.0003239,30]
[391751466,1760775043890,-151.0,0.0003239,30]
[391751467,1760775043901,-151.0,0.0003239,30]
[391751468,1760775043911,-151.0,0.0003239,30]
[391751469,1760775043920,-151.0,0.0003239,30]
[391751470,1760775043929,-369.94005,0.0003239,30]
[391751471,1760775043939,-151.0,0.0003239,30]
[391751472,1760775043948,-151.0,0.0003239,30]
[391751473,1760775043957,-151.996775,0.0003239,30]
[391751474,1760775043966,-369.94005,0.0003239,30]
[391751475,1760775043975,-255.373871,0.0003239,30]
[391751476,1760775043984,-369.94005,0.0003239,30]
[391751477,1760775043993,-255.373871,0.0003239,30]
[391751478,1760775044003,-369.94005,0.0003239,30]
[391751479,1760775044013,-255.373871,0.0003239,30]
[391751480,1760775044022,-255.373871,0.0003239,30]
[391751481,1760775044032,-151.0,0.0003239,30]
[391751482,1760775044042,-151.0,0.0003239,30]
[391751483,1760775044051,-187.574291,0.0003239,30]
[391751484,1760775044061,-151.0,0.0003239,30]
[391751485,1760775044071,-187.574291,0.0003239,30]
[391751486,1760775044081,-287.78202,0.0003239,30]
[391751487,1760775044091,-187.574291,0.0003239,30]
[391751488,1760775044101,-187.574291,0.0003239,30]
[391751489,1760775044111,-151.0,0.0003239,30]
[391751490,1760775044121,-151.0,0.0003239,30]
[391751491,1760775044132,-294.96471,0.0003239,30]
[391751492,1760775044142,-151.0,0.0003239,30]
[391751493,1760775044152,-294.96471,0.0003239,30]
[391751494,1760775044161,-150.14,0.0003239,2]
[391751495,1760775044171,-150.14,0.0003239,2]
[391751496,1760775044181,-150.14,0.0003239,2]
[391751497,1760775044191,-150.14,0.0003239,2]
[391751498,1760775044201,-150.14,0.0003239,2]
[391751499,1760775044211,-150.14,0.0003239,2]
[391751500,1760775044221,-150.14,0.0003239,2]
[391751501,1760775044230,-150.14,0.0003239,2]
[391751502,1760775044243,-204.84901359,0.0003239,2]
[391751503,1760775044252,-294.96471,0.0003239,30]
[391751504,1760775044262,-151.0,0.0003239,30]
[391751505,1760775044271,-151.0,0.0003239,30]
[391751506,1760775044280,-294.96471,0.0003239,30]
[391751507,1760775044291,-151.0,0.0003239,30]
[391751508,1760775044301,-151.0,0.0003239,30]
[391751509,1760775044310,-151.0,0.0003239,30]
[391751510,1760775044320,-151.0,0.0003239,30]
[391751511,1760775044329,-151.0,0.0003239,30]
[391751512,1760775044339,-103.58041884,0.0003239,30]
[391751513,1760775044352,-47.41958116,0.0003239,30]
[391751514,1760775044362,-151.0,0.0003239,30]
[391751515,1760775044372,-151.0,0.0003239,30]
[391751516,1760775044382,-152.319344,0.0003239,30]
[391751517,1760775044391,-151.0,0.0003239,30]
[391751518,1760775044401,-151.0,0.0003239,30]
[391751519,1760775044411,-152.368206,0.0003239,30]
[391751520,1760775044420,-151.0,0.0003239,30]
[391751521,1760775044430,-175.561622,0.0003239,30]
[391751522,1760775044440,-175.561622,0.0003239,30]
[391751523,1760775044449,-175.561622,0.0003239,30]
[391751524,1760775044459,-175.561622,0.0003239,30]
[391751525,1760775044469,-196.669836,0.0003239,30]
[391751526,1760775044478,-152.707265,0.0003239,30]
[391751527,1760775044487,-147.7961777,0.00032399,10]
[391751528,1760775044501,-152.2038223,0.00032399,10]
[391751529,1760775044510,-666.0,0.00032399,10]
[391751530,1760775044520,-300.0,0.00032399,10]
[391751531,1760775044529,-300.0,0.00032399,10]
[391751532,1760775044540,-666.0,0.00032399,10]
[391751533,1760775044549,-360.89504448,0.00032399,17]
[391751534,1760775044561,-139.10495552,0.00032399,17]
[391751535,1760775044570,-392.92504448,0.00032399,17]
[391751536,1760775044582,-107.07495552,0.00032399,17]
[391751537,1760775044592,-393.39206397,0.00032399,2]
[391751538,1760775044604,-106.60793603,0.00032399,2]
[391751539,1760775044613,-1004.41,0.00032399,120]
[391751540,1760775044623,-151.06864197,0.00032399,15]
[391751541,1760775044634,-505.6820722,0.000324,2]
[391751542,1760775044648,-2348.2,0.000324,2]
[391751543,1760775044659,-3323.05287521,0.000324,2]
[391751544,1760775044671,-818.35140669,0.000324,2]
[391751569,1760775046564,-240.51327025,0.00032289,2]
[391751570,1760775046574,-1766.61490038,0.000324,2]
[391751571,1760775046647,-701.58788103,0.000324,2]
[391751572,1760775046660,-3806.1468971,0.000324,2]
[391751573,1760775046672,-14967.957291,0.000324,2]
[391751574,1760775046683,-4024.7,0.000324,2]
[391751576,1760775046733,-379.12940536,0.000324,2]
[391751577,1760775046749,-37520.0,0.000324,2]
[391751578,1760775046764,-3269.99201105,0.000324,2]
[391751579,1760775046781,-734569.95696335,0.000324,2]
[391751580,1760775046826,-657.92929977,0.000324,2]
[391751581,1760775046840,-612.84989598,0.000324,2]
[391751582,1760775046853,-327.410967,0.000324,2]
[391751643,1760775566036,1000.0,0.00032582,30]
[391751644,1760775566871,1000.0,0.00032582,30]
[391751645,1760775567885,1000.0,0.00032582,30]
[391751646,1760775568722,1000.0,0.00032582,30]
[391751647,1760775569266,1000.0,0.00032582,30]
[391751648,1760775569817,1000.0,0.00032582,30]
[391751650,1760775570384,1000.0,0.00032582,30]
[391751651,1760775571061,377.42494117,0.00032582,30]
[391751652,1760775577193,238.18,0.00013699,2]
[391751663,1760775860896,150.90534233,0.00032585,30]
[391751665,1760775908092,89011.82,0.00015,2]
[391751666,1760775908120,15000.0,0.00015,2]
[391751667,1760775908145,15000.0,0.00015,2]
[391751668,1760775908171,15000.0,0.00015,2]
[391751669,1760775908198,15000.0,0.00015,2]
[391751670,1760775908224,15000.0,0.00015,2]
[391751671,1760775908251,15000.0,0.00015,2]
[391751672,1760775908278,15000.0,0.00015,2]
[391751673,1760775908303,15000.0,0.00015,2]
[391751674,1760775908330,15000.0,0.00015,2]
[391751675,1760775908355,15000.0,0.00015,2]
[391751676,1760775908381,15000.0,0.00015,2]
[391751677,1760775908406,15000.0,0.00015,2]
[391751678,1760775908432,15000.0,0.00015,2]
[391751679,1760775908456,15000.0,0.00015,2]
[391751680,1760775908481,15000.0,0.00015,2]
[391751681,1760775908504,15000.0,0.00015,2]
[391751682,1760775908528,15000.0,0.00015,2]
[391751683,1760775908552,15000.0,0.00015,2]
[391751684,1760775908577,15000.0,0.00015,2]
[391751685,1760775908602,15000.0,0.00015,2]
[391751686,1760775908626,6873.70945794,0.00015,2]
[391751696,1760776074874,8126.29054206,0.00015,2]
[391751697,1760776074896,15000.0,0.00015,2]
[391751698,1760776074923,100000.0,0.00015,2]
[391751699,1760776075743,-340.24615266,0.00015,2]
[391751700,1760776079810,-176.98658232,0.00015,2]
[391751701,1760776084171,-300.0,0.00014999,2]
[391751702,1760776084196,-200.0,0.00015,2]
[391751703,1760776085740,-4836.01341768,0.00015,2]
[391751704,1760776087377,-156.16058449,0.00015,2]
[391751705,1760776090005,-349.28772411,0.00015,2]
[391751721,1760776216491,2000.0,0.00032585,120]
[391751730,1760776231374,-7140.2150028,0.00015,2]
[391751732,1760776231383,-6913.44508401,0.00015,2]
[391751734,1760776231393,-216.34,0.00015666,2]
[391751735,1760776231403,-216.34,0.0001649,2]
[391751737,1760776231412,-216.34,0.00017315,2]
[391751739,1760776231421,-216.34,0.00018139,2]
[391751740,1760776231431,-216.34,0.00018964,2]
[391751741,1760776231440,-216.34,0.00019788,2]
[391751742,1760776231449,-238.18,0.00020187,2]
[391751743,1760776231459,-216.34,0.00020613,2]
[391751744,1760776231468,-216.34,0.00021437,2]
[391751745,1760776231477,-216.34,0.00022262,2]
[391751746,1760776231486,-216.34,0.00023086,2]
[391751747,1760776231496,-216.34,0.00023911,2]
[391751748,1760776231506,-216.34,0.00024735,2]
[391751749,1760776231517,-216.34,0.0002556,2]
[391751750,1760776231526,-216.34,0.00026384,2]
[391751751,1760776231535,-238.18,0.00026676,2]
[391751752,1760776231545,-216.34,0.00027209,2]
[391751753,1760776231555,-166.66,0.00027713,30]
[391751754,1760776231564,-216.34,0.00028033,2]
[391751755,1760776231573,-166.66,0.00028297,30]
[391751756,1760776231582,-216.34,0.00028858,2]
[391751757,1760776231594,-166.66,0.0002888,30]
[391751758,1760776231603,-250.0,0.00029275,7]
[391751759,1760776231612,-154.54210176,0.00029293,7]
[391751760,1760776231621,-150.0,0.00029293,7]
[391751761,1760776231631,-150.0,0.00029293,7]
[391751762,1760776231640,-300.0,0.00029322,41]
[391751763,1760776231649,-320.08407053,0.00029396,2]
[391751764,1760776231659,-166.66,0.00029464,30]
[391751765,1760776231668,-286.69,0.00029544,2]
[391751766,1760776231678,-690.62,0.00029567,2]
[391751767,1760776231687,-216.34,0.00029682,2]
[391751768,1760776231699,-166.66,0.00030047,30]
[391751769,1760776231719,-216.34,0.00030506,2]
[391751770,1760776231728,-408.0,0.00030521,2]
[391751771,1760776231737,-166.66,0.00030631,30]
[391751772,1760776231747,-153.0,0.00031,120]
[391751774,1760776231756,-216.34,0.00031331,2]
[391751775,1760776231765,-5000.0,0.00031347,2]
[391751776,1760776231774,-7858.8,0.00031408,2]
[391751777,1760776231783,-11951.22454641,0.0003143,4]
[391751778,1760776231792,-804.05,0.00031435,2]
[391751779,1760776231802,-1372.32545336,0.00031588,2]
[391751780,1760776231811,-874.78938815,0.00031601,2]
[391751781,1760776231820,-150.0,0.0003169,2]
[391751782,1760776231829,-200.0,0.000317,11]
[391751783,1760776231838,-9552.16786547,0.00031727,2]
[391751784,1760776231847,-277.35679052,0.00031727,2]
[391751785,1760776231855,-300.0,0.00031753,2]
[391751786,1760776231865,-1658.83,0.00031753,2]
[391751787,1760776231874,-336.48,0.00031753,2]
[391751788,1760776231883,-300.0,0.00031753,2]
[391751789,1760776231892,-9905.5980765,0.00031782,2]
[391751790,1760776231902,-500.0,0.000318,11]
[391751791,1760776231912,-10272.10520533,0.00031837,2]
[391751792,1760776231922,-10652.17309792,0.00031892,2]
[391751793,1760776231931,-874.78938815,0.00031899,2]
[391751794,1760776231940,-800.0,0.000319,11]
[391751795,1760776231949,-11046.30350255,0.00031947,2]
[391751796,1760776231958,-239.48174697,0.00032002,2]
[391751797,1760776231979,-727.65809693,0.00032002,2]
[391751798,1760776232002,-1084.09306031,0.00032002,2]
[391751803,1760776237452,-300.0,0.00029321,41]
[391751804,1760776237462,-939.23805153,0.00032002,2]
[391751805,1760776237563,-1122.65500025,0.00032002,2]
[391751806,1760776237574,-1416.15866498,0.00032002,2]
[391751807,1760776237616,-1830.12158691,0.00032002,2]
[391751809,1760776237626,-385.66364386,0.00032204,2]
[391751814,1760776239462,-489.12574429,0.00032204,2]
[391751815,1760776239472,-424.01434643,0.0003229,2]
[391751816,1760776239483,-2376.29990928,0.0003229,2]
[391751817,1760776239494,-447.545639,0.0003229,2]
[391751818,1760776239503,-151.06864197,0.0003229,15]
[391751819,1760776239514,-412.61311114,0.000323,2]
[391751820,1760776239526,-420.86114321,0.000323,4]
[391751821,1760776239619,-2720.97079731,0.000323,4]
[391751822,1760776239629,-3254.71901679,0.000323,2]
[391751823,1760776239638,-1482.76426215,0.000323,3]
[391751824,1760776239679,-3150.0,0.000323,3]
[391751825,1760776239690,-2705.9,0.000323,3]
[391751826,1760776239701,-436.58647097,0.000323,3]
[391751827,1760776239711,-331.06967471,0.000323,3]
[391751828,1760776239735,-332.34,0.000323,3]
[391751829,1760776239792,-750.34978988,0.000323,3]
[391751830,1760776239860,-1.6e-07,0.000323,3]
[391751841,1760776242491,-2097.29630213,0.000323,3]
[391751842,1760776242501,-3247.85989469,0.00032309,2]
[391751843,1760776242510,-556.035,0.00032318,32]
[391751844,1760776242523,-2469.07086753,0.00032318,2]
[391751845,1760776242535,-617.96323687,0.00032318,2]